Cogmind - Beta 14 @@@ ROGUE MODE // 2024.11.03 @ 17:34:45 Player: Shimmyarah Result: Destroyed by D-53 Grenadier with Mini Grenade Launcher Performance ------------- Evolutions (0) 0 Regions Visited (2) 400 Robots Destroyed (5) 25 Value Destroyed (101) 101 Prototype IDs (0) 0 Alien Tech Used (0) 0 Bonus (0) 0 TOTAL SCORE: 526 Bonus ------- None Cogmind --------- Core Integrity 0/250 Matter 256/300 Energy 82/125 System Corruption 8% Temperature Cool (20) Movement Core (100) Ox1 Location -10/Mines Parts ------- > --- POWER (1) -------- Light Ion Engine > --- PROPULSION (2) --- (None) > --- UTILITY (2) ------ (None) > --- WEAPON (2) ------- Medium Laser > --- INVENTORY (5) ---- (None) Peak State ------------ > --- POWER ------------ Ion Engine > --- PROPULSION ------- Light Treads Wheel > --- UTILITY ---------- Signal Interpreter Improved Terrain Scanner > --- WEAPON ----------- Medium Laser Assault Rifle > --- INVENTORY -------- Light Ion Engine EM Pulse Gun Mining Laser [Rating: 9] Favorites ----------- Power Ion Engine Engine Ion Engine Propulsion Wheel Treads Light Treads Wheel Wheel Utility Improved Terrain Scanner Device Improved Terrain Scanner Processor Signal Interpreter Weapon Assault Rifle Energy Gun EM Pulse Gun Ballistic Gun Assault Rifle Special Weapon Mining Laser Build | -11 -10 -10 ------- Run | Yrd Mat Min Slots Evolved . | . . . Power . | . . . Propulsion . | . . . Utility . | . . . Weapon . | . . . Parts Attached 14 | 7 1 6 Power 2 | 1 . 1 Engine 2 | 1 . 1 Core . | . . . Reactor . | . . . Propulsion 2 | 2 . . Treads 1 | 1 . . Leg . | . . . Wheel 1 | 1 . . Hover . | . . . Flight . | . . . Utility 2 | 1 . 1 Device 1 | 1 . . Storage . | . . . Processor 1 | . . 1 Hackware . | . . . Protection . | . . . Artifact . | . . . Weapon 8 | 3 1 4 Energy Gun 5 | 1 1 3 Energy Cannon . | . . . Ballistic Gun 1 | 1 . . Ballistic Cannon . | . . . Launcher . | . . . Special Weapon 2 | 1 . 1 Impact Weapon . | . . . Slashing Weapon . | . . . Piercing Weapon . | . . . Special Melee Weapon . | . . . Unidentified Prototypes . | . . . Parts Lost 8 | . . 8 Power 1 | . . 1 Propulsion 2 | . . 2 Utility 2 | . . 2 Weapon 3 | . . 3 Highest Loss Streak 8 | . . 8 To Critical Strikes . | . . . Average Slot Usage (%) 81 | . 85 75 Engine 12 | . 14 10 Treads 13 | . 14 11 Wheel 13 | . 14 11 Device 12 | . 14 8 Processor 2 | . . 8 Energy Gun 12 | . 14 10 Ballistic Gun 13 | . 14 11 Peak Build Rating 9 | 8 8 9 Average Rating 7 | 6 8 6 On Entrance 5 | . 8 8 Naked Turns 5 | . . 5 Heaviest Build 10 | 10 10 10 Greatest Support 20 | 20 20 20 Greatest Overweight (x) 2 | . . 2 Average Overweight (x) . | . . . Largest Inventory Capacity 5 | 5 5 5 Average Capacity 5 | 5 5 5 Most Carried 4 | 3 4 4 Average Carried 2 | 1 2 2 Final Capacity 5 | 5 5 5 Final Carried 4 | 2 4 . Class Distribution -------------------- 100% | Mutant Dominant Class ---------------- Mutant | -10/Materials Mutant | -10/Mines Resources | -11 -10 -10 ----------- Run | Yrd Mat Min Matter Collected 304 | 273 31 . Remotely . | . . . Salvage Created 142 | 63 79 . Parts 12 | 7 5 . Haulers Intercepted . | . . . Recyclers Shooed . | . . . Parts Field Recycled . | . . . Retrieved Matter . | . . . Parts Self-Destructed . | . . . Prevented . | . . . Kills | -11 -10 -10 ------- Run | Yrd Mat Min Combat Hostiles Destroyed 3 | . 2 1 Guns 3 | . 2 1 Classes Destroyed 4 | 2 1 1 Tunneler 2 | 2 . . Recycler 1 | 1 . . Grunt 2 | . 2 . Assembled 1 | . . 1 Best Kill Streak 2 | 2 2 1 Combat Bots Only 2 | . 2 1 Max Kills in Single Turn 1 | 1 1 1 Gunslinging . | . . . Exploded . | . . . Melee . | . . . Uniques/NPCs Destroyed . | . . . Combat | -11 -10 -10 -------- Run | Yrd Mat Min Hostile Shots Fired 32 | . 18 14 Missed 6 | . 6 . Damage Taken 819 | . 160 659 Core 284 | . 22 262 Absorbed by Shields . | . . . Core Remaining (%) 100 | 100 . . Volleys Fired 22 | 6 8 8 Largest 2 | 2 2 2 Hottest 120 | 100 60 120 Shots Fired 39 | 7 16 16 Gun 32 | 2 16 14 Cannon . | . . . Launcher . | . . . Special 7 | 5 . 2 Kinetic 16 | 1 8 7 Thermal 13 | 5 . 8 Explosive . | . . . Electromagnetic 10 | 1 8 1 Robot Hit Streak 4 | 2 4 3 Robot Miss Streak 4 | 1 4 2 Penetration Max . | . . . Secondary Targets . | . . . Shots Hit Robots 20 | 4 8 8 Core Hits 10 | 3 5 2 Critical Kills . | . . . Critical Parts Destroyed . | . . . Critical Strikes . | . . . Melee Attacks . | . . . Impact . | . . . Slashing . | . . . Piercing . | . . . Sneak Attacks . | . . . Combat Hostiles . | . . . Follow-up Attacks . | . . . Damage Inflicted 298 | 82 119 97 Guns 202 | 10 119 73 Cannons . | . . . Explosions . | . . . Melee . | . . . Ramming . | . . . Kinetic 150 | 10 79 61 Thermal 108 | 72 . 36 Explosive . | . . . Electromagnetic 40 | . 40 . Impact . | . . . Slashing . | . . . Piercing . | . . . Highest Corruption 8 | . . 8 Average Corruption 7 | . . 7 Corruption Purged . | . . . Corruption Blocked . | . . . Effects 1 | . . 1 Energy Discharges 1 | . . 1 Overload Shots . | . . . Overflow Damage . | . . . Projectiles . | . . . Explosions . | . . . Melee . | . . . Knockbacks . | . . . Impact . | . . . Kinetic . | . . . Secondary . | . . . Self-Inflicted Damage . | . . . Shots . | . . . Rammed . | . . . Targets Rammed . | . . . Kicked . | . . . Crushed . | . . . Highest Temperature 48 | 40 48 33 Average Temperature 23 | 18 29 20 Received Heat Transfer 129 | . 129 . Siege Activations . | . . . Robots Corrupted . | . . . Combat Hostiles . | . . . Parts Fried . | . . . Impact Corruptions . | . . . Robots Melted . | . . . Combat Hostiles . | . . . Parts Melted . | . . . Heat Transferred 237 | 150 . 87 Parts Sabotaged . | . . . Parts Stolen . | . . . Parts Stripped . | . . . Power Chain Reactions . | . . . Alert | -11 -10 -10 ------- Run | Yrd Mat Min Peak Influence 91 | 15 91 35 Initial 35 | . 9 35 Average 34 | 6 51 24 Maximum Alert Level . | . . . Low Security (%) 100 | 100 100 100 Level 1 . | . . . Level 2 . | . . . Level 3 . | . . . Level 4 . | . . . Level 5 . | . . . High Security . | . . . Max Security . | . . . Squads Dispatched . | . . . Investigation . | . . . Extermination . | . . . Reinforcement . | . . . Assault . | . . . Garrison . | . . . Intercept . | . . . Searches Triggered . | . . . Construction Impeded . | . . . Haulers Reinforced . | . . . Active Scanning Responses . | . . . Cargo Convoy Interrupts . | . . . Stealth | -11 -10 -10 --------- Run | Yrd Mat Min Distress Signals 1 | . 1 . Communications Jammed . | . . . Distress Signals . | . . . Times Spotted 15 | . 5 10 Peak Tracking Total 19 | . 3 19 Tactical Retreats . | . . . Traps | -11 -10 -10 ------- Run | Yrd Mat Min Traps Triggered . | . . . Indirectly . | . . . Trap Hack Attempts . | . . . Triggered . | . . . Disarmed . | . . . Reprogrammed . | . . . Reused . | . . . Traps Extracted . | . . . Installed . | . . . Triggered . | . . . Machines | -11 -10 -10 ---------- Run | Yrd Mat Min Machines Disabled . | . . . Max in Single Turn . | . . . Machines Repaired . | . . . Machines Dismantled . | . . . Machines Sabotaged . | . . . Overloaded Fab Kills . | . . . Hacking | -11 -10 -10 --------- Run | Yrd Mat Min Machines Accessed 1 | . 1 . Terminals 1 | . 1 . Fabricators . | . . . Repair Stations . | . . . Recycling Units . | . . . Scanalyzers . | . . . Garrison Access . | . . . Total Hacks 3 | . 3 . Successful 1 | . 1 . Failed 2 | . 2 . Catastrophic 1 | . 1 . Database Lockouts . | . . . Manual . | . . . Terminals 3 | . 3 . Fabricators . | . . . Repair Stations . | . . . Recycling Units . | . . . Scanalyzers . | . . . Garrison Access . | . . . Terminal Hacks 1 | . 1 . Record 1 | . 1 . Fabricator Hacks . | . . . Repair Station Hacks . | . . . Recycling Unit Hacks . | . . . Scanalyzer . | . . . Garrison Access Hacks . | . . . Unauthorized Hacks . | . . . Terminals . | . . . Fabricators . | . . . Repair Stations . | . . . Recycling Units . | . . . Scanalyzers . | . . . Garrison Access . | . . . Data Cores Recovered . | . . . Used . | . . . Hacking Detections . | . . . Full Trace Events . | . . . Feedback Events . | . . . Feedback Blocked . | . . . Robot Schematics Acquired . | . . . Robots Built . | . . . Authchips . | . . . Time . | . . . Total Robot Build Rating . | . . . Part Schematics Acquired . | . . . Parts Built . | . . . Authchips . | . . . Time . | . . . Total Part Build Rating . | . . . Parts Repaired . | . . . Time . | . . . Parts Recycled . | . . . Recycled Matter . | . . . Retrieved Matter . | . . . Retrieved Components . | . . . Parts Scanalyzed . | . . . Part Schematics Acquired . | . . . Parts Damaged . | . . . Bothacking | -11 -10 -10 ------------ Run | Yrd Mat Min Used RIF Installer . | . . . Robots Hacked . | . . . Non-combat . | . . . Combat . | . . . Robot Hacks Applied . | . . . Relay Couplers Released . | . . . Fabnet Peak Effective % . | . . . Robots Rewired . | . . . Allies Hacked . | . . . Hacks Repelled . | . . . Allies | -11 -10 -10 -------- Run | Yrd Mat Min Total Allies . | . . . Largest Group . | . . . Highest-Rated Group . | . . . Highest-Rated Ally . | . . . Total Orders . | . . . Ally Attacks . | . . . Total Damage . | . . . Kills . | . . . Allies Corrupted . | . . . Allies Melted . | . . . Intel | -11 -10 -10 ------- Run | Yrd Mat Min Robot Analysis Total . | . . . Derelict Logs Recovered . | . . . Drone Launches . | . . . Drone Recoveries . | . . . Exploration | -11 -10 -10 ------------- Run | Yrd Mat Min Turns Passed 449 | 106 233 110 Spaces Moved 230 | 48 129 53 Core 16 | 3 . 13 Treads 208 | 39 129 40 Legs . | . . . Wheels 6 | 6 . . Hover . | . . . Flight . | . . . Fastest Speed 50 | 50 160 50 Average Speed 151 | 143 160 136 Slowest Speed 160 | 160 160 160 Overloaded Moves . | . . . Propulsion Burnouts . | . . . Robots Hopped . | . . . Cave-ins Triggered . | . . . Exploration Rate (%) 12 | 4 18 16 Regions Visited 2 Branch Regions 1 Pre-discovered Areas . | . . . Known Exits Taken . | . . . Unknown Exits Taken 2 | 1 1 . Scrap Searched . | . . . Spaces Dug . | . . . Terrain Destroyed 1 | 1 . . Melee . | . . . Projectile 1 | 1 . . AOE . | . . . Terrain Rammed . | . . . Walls Destroyed . | . . . Machines Disabled . | . . . Actions | -11 -10 -10 --------- Run | Yrd Mat Min Total 277 | 68 139 70 Wait . | . . . Move 228 | 47 128 53 Hop . | . . . Pick Up 10 | 8 2 . Fast Attach . | . . . Attach 10 | 6 . 4 Detach . | . . . Swap 4 | 1 1 2 Drop . | . . . Fire 22 | 6 8 8 Melee . | . . . Ram . | . . . Kick . | . . . Crush . | . . . Escape Stasis . | . . . Rewire 3 | . . 3 Trap . | . . . Miscellaneous . | . . . Route ------- -11/Scrapyard -10/Materials -10/Mines History --------- Turn | Location | Event 10 | -11/Scrapyard | Discovered new exit (range 15) 107 | -11/Scrapyard | Entered Materials 318 | -10/Materials | Build established: Mutant 319 | -10/Materials | Discovered new exit (range 6) 340 | -10/Materials | Entered Mines 384 | -10/Mines | Assembled infested the area 431 | -10/Mines | Core integrity fell below 50% 435 | -10/Mines | Met 8R-AWN 446 | -10/Mines | Core integrity fell below 20% 450 | -10/Mines | Destroyed by D-53 Grenadier with Mini Grenade Launcher Last Messages --------------- 00444_ as-52251 cannot be rewired. 00444_ HV Slug penetrates as-52251. 00444_ Penetrated by HV Slug. 00444_ HV Slug penetrates as-52251. 00444_ as-52251 suffers critical hit (Destroy). 00444_ as-52251 destroyed. 00444_ Penetrated by HV Slug. 00445_ as-48338 destroyed. 00445_ as-79029 destroyed. 00446_ HV Slug penetrates as-69057. 00446_ Penetrated by HV Slug. 00446_ HV Slug penetrates Earth. 00448_ EM Pulse Gun destroyed. 00449_ HV Slug penetrates D-53 Grenadier. 00449_ D-53 Grenadier suffers critical hit (Destroy). 00449_ D-53 Grenadier destroyed. 00449_ HV Slug penetrates D-53 Grenadier. 00449_ D-53 Grenadier suffers critical hit (Destroy). Map ----- +----------------------------------------------------+ | ?????????????????????????????????????? | | ?????????????????????????????????????? | | ?????????????????????????????????????? | | ?????????????????????????????????????? | | ?????????????????????????????????????? | | ?????????????????????????????????????? | | ?????????????????????????????????????? | | ??????????????????????????????? ????? | | ?????????????????????????????#? ????? | | ?????????????????????????????# ????? | | ??????????????????#??????????? ????? | | ????????????????? ?????????? ????? | | ???????????????? ?????????? ???#? | | ??????????????? ?????????? ????? | | ???????????????# ????#?????? #???? | | ???????????????? #?????????? ???? | | ???????????????? ######???? ? ?? | | ?????????????????? ##???# #???? | | ???????????????????# ##??# #?#?? | | ???????????????##???# ##?# ##?#? | | ??##?????###### #?### ###%####? | | ??#; #### ### " ## | | ??# % %% ## t | | ??# g *! #### ## | | ???# %% %a d%= # #??# ## | | ?????#"# %% a@ # ##??# | | ???????## # #???#### | | ????????# ## #??#???# | | ????????#### # #### ###?????## | | ???????????##?##??###########??????## | | ?????????????????????????????#???### | | ?????????????????????????????????## | | ?????????????????????????????#????# | | ??????????????????????????????????## | | ???????????????#???????????????????### | | ?????????????????????????????????????# | | | | | | | | | | | | | | | | | | | | | | | | | | | | | +----------------------------------------------------+ Best States ------------- Heat Dissipation 25 Energy Generation 10 Energy Capacity 250 Matter Stores 300 Matter Capacity 300 Sight Range 16 Terrain Scan Range 16 Terrain Scan Density 10 Evasion (%) 50 Recoil Reduction 1 Item Schematics ----------------- None Robot Schematics ------------------ None Fabricated ------------ Nothing Alien Tech Used ----------------- None Achievements -------------- None Challenges ------------ None Game ------ Seed AntimissileEncryptedFilter Manual? 0 Play Time 00:10:17 Cumulative 3.2 hours Start 2024.11.03 @ 17:26:59 End 2024.11.03 @ 17:34:45 Sessions 1 Manual Loads 0 Difficulty Rogue Special Mode None Game No. 6 Rogue 6 Adventurer 0 Explorer 0 Win Type - Total 0 Types 0/0/0/0/0/0/0/0/0 Lore% 6 Gallery% 5 Achievement% 5 Wizard Run 0 Options --------- Layout 2 ASCII 0 Keyboard 0 Movement Arrows Keybinds 0 Fullscreen 1 Font 24/Tallcaps Map View 25x24 Zoom Use 50% Tactical HUD 1 Map Filters NONE Filters NONE Steam 1 RUN: 984914e0-419b-40d8-a3b8-c3855c0d71ad